bitfinex-derivatives/quotes_ETHF0:USTF0_20250416
["timestamp","ask_amount","ask_price","bid_price","bid_amount"]
[1744778326441,0.00948016,1581.4,1581.3,1.26488]
[1744778328042,0.00948016,1581.4,1581.3,4.47268]
[1744778329239,0.00948016,1581.4,1581.3,14.00468]
[1744778329437,7.36066103,1581.8,1581.7,1.26456]
[1744778329438,4.15286103,1581.8,1581.7,1.26456]
[1744778329642,4.15286103,1581.8,1581.7,4.47236]
[1744778329842,4.15286103,1581.8,1581.7,45.27236]
[1744778330046,6.22929154,1581.9,1581.8,1.26448]
[1744778330345,6.22929154,1581.9,1581.8,2.85608]
[1744778330543,6.22929154,1581.9,1581.8,7.85608]
[1744778330847,6.22929154,1581.9,1581.8,48.65608]
[1744778331549,1.96277273,1581.9,1581.8,48.65608]
[1744778331750,1.6e-07,1582.0,1581.9,1.2644]
[1744778331944,4.15506925,1582.5,1582.4,1.264]
[1744778332443,7.09543925,1582.5,1582.3,2.85693]
[1744778332645,5.41903925,1582.5,1582.4,42.064]
[1744778332833,5.41903925,1582.5,1582.4,40.8]
[1744778333035,4.15506925,1582.5,1582.4,42.064]
[1744778333239,4.15506925,1582.5,1582.4,43.6569]
[1744778334050,5.41898925,1582.5,1582.4,42.3929]
[1744778334742,8.62678925,1582.5,1582.4,40.8]
[1744778334944,13.62678925,1582.5,1582.4,40.8]
[1744778336651,1.26392,1582.5,1582.4,42.064]
[1744778337250,1.26392,1582.5,1582.4,40.8]
[1744778339355,1.26392,1582.5,1582.4,42.064]
[1744778339555,4.47172,1582.5,1582.4,42.064]
[1744778340254,3.2078,1582.5,1582.4,42.064]
[1744778340647,4.47172,1582.5,1582.4,42.064]
[1744778340848,4.47172,1582.5,1582.4,40.8]
[1744778341356,3.2078,1582.5,1582.4,42.064]
[1744778341555,3.2078,1582.5,1582.4,43.7698]
[1744778341748,4.47172,1582.5,1582.4,43.7698]
[1744778342257,4.47172,1582.5,1582.4,42.5058]
[1744778342454,4.47172,1582.5,1582.4,40.8]
[1744778343154,3.16027,1582.3,1581.7,0.00948016]
[1744778343451,1.2643,1582.1,1582.0,1.26428]
[1744778343648,2.92867,1582.2,1582.1,1.26424]
[1744778343848,1.6645,1582.2,1582.1,1.26424]
[1744778344055,1.6645,1582.2,1582.1,2.93744]
[1744778344356,1.26413,1582.3,1582.2,1.26416]
[1744778344557,1.26413,1582.3,1582.2,2.93736]
[1744778345159,3.282,1582.4,1582.2,1.6732]
[1744778345357,1.26408,1582.3,1582.2,2.93731]
[1744778345760,1.26408,1582.3,1582.2,1.6732]
[1744778346059,1.26416,1582.2,1582.1,1.26419]
[1744778346262,1.26416,1582.2,1582.1,2.99869]
[1744778347660,1.26416,1582.2,1582.1,1.7345]
[1744778347860,1.26424,1582.1,1582.0,42.06425]
[1744778348260,1.26424,1582.1,1582.0,40.8]
[1744778348959,4.47204,1582.1,1582.0,40.8]
[1744778350857,1.26448,1581.8,1581.7,2.90639016]
[1744778351166,1.26446,1581.9,1581.8,1.26445]
[1744778351462,6.21347,1582.0,1581.9,1.2644]
[1744778351661,1.26428,1582.1,1582.0,1.26432]
[1744778351962,3.01688,1582.1,1582.0,1.26432]
[1744778352659,1.7526,1582.1,1582.0,1.26432]
[1744778352860,3.01684,1582.1,1582.0,1.26432]
[1744778353168,3.01684,1582.1,1582.0,2.94222]
[1744778354468,3.01684,1582.1,1582.0,1.6779]
[1744778354962,6.22464,1582.1,1581.9,1.6406]
[1744778355168,3.00712,1582.0,1581.9,4.6557]
[1744778355562,1.7428,1582.0,1581.9,4.6557]
[1744778355761,1.2643,1582.1,1582.0,1.26432]
[1744778355963,1.2643,1582.1,1582.0,3.01502]
[1744778357676,4.47195,1582.3,1582.2,1.26416]
[1744778357971,6.21475,1582.3,1582.2,1.26416]
[1744778358273,1.26416,1582.2,1582.1,4.68698]
[1744778358473,1.26416,1582.2,1582.1,2.93628]
[1744778358780,1.26416,1582.2,1582.1,1.6721]
[1744778358966,1.26424,1582.1,1582.0,1.26426]
[1744778359573,1.26432,1582.0,1581.9,4.59004]
[1744778360375,2.81141,1582.1,1582.0,1.26432]
[1744778360572,4.52401,1582.1,1582.0,1.26432]
[1744778361786,3.2597,1582.1,1582.0,1.26432]
[1744778362488,1.2642,1582.2,1582.1,1.26424]
[1744778362887,6.11775,1582.3,1582.2,1.26416]
[1744778364292,1.2642,1582.2,1582.1,1.26419]
[1744778365996,6.11774,1582.3,1582.2,1.26416]
[1744778366195,1.26421,1582.2,1582.1,1.26419]
[1744778372196,3.00971,1582.2,1582.1,1.26419]
[1744778374499,1.7455,1582.2,1582.1,1.26419]
[1744778374806,7.8264,1582.4,1582.1,3.1606]
[1744778374807,3.3354,1582.4,1582.1,3.1606]
[1744778375101,3.3354,1582.4,1582.3,1.26408]
[1744778375502,1.7125,1582.5,1582.2,5.1583]
[1744778375703,0.00948016,1582.6,1582.5,1.26392]
[1744778376098,0.00948016,1582.6,1582.5,9.47172]
[1744778376298,0.00948016,1582.6,1582.5,12.90152]
[1744778378806,0.00948016,1582.6,1582.5,53.70152]
[1744778379303,0.00948016,1582.6,1582.5,45.49372]
[1744778379805,1.6e-07,1582.6,1582.5,53.70152]
[1744778381193,1.6e-07,1582.6,1582.5,48.70152]
[1744778381600,1.6e-07,1582.6,1582.5,53.70152]
[1744778382007,2.89984,1583.3,1582.5,53.70152]
[1744778382008,1.6365,1583.3,1583.2,1.26336]
[1744778382210,3.3425,1583.3,1583.2,1.26336]
[1744778382596,4.60578,1583.3,1583.2,1.26336]
[1744778382801,3.3425,1583.3,1583.2,1.26336]
[1744778383202,1.70418016,1583.4,1583.3,1.26328]
[1744778383704,6.70418016,1583.4,1583.1,0.00948016]
[1744778383903,4.53932,1583.3,1583.1,1.27289016]
[1744778384105,1.6293,1583.2,1583.1,1.27289016]
[1744778384710,1.6293,1583.2,1583.1,2.97239016]
[1744778386010,1.6467,1583.3,1583.2,1.26336]
[1744778386209,3.3689,1583.3,1583.2,1.26336]
[1744778388208,11.5767,1583.3,1583.1,0.00948016]
[1744778388511,2.98556,1583.2,1583.1,0.00948016]
[1744778388709,1.7222,1583.2,1583.1,1.27292016]
[1744778389512,1.6467,1583.3,1583.2,1.26336]
[1744778389707,1.6467,1583.3,1583.2,2.88006]
[1744778391017,3.42318016,1583.4,1583.3,1.26328]
[1744778391219,3.42318016,1583.4,1583.3,2.87998]
[1744778393413,0.00948016,1583.4,1583.3,2.87998]
[1744778393613,0.00948016,1583.4,1583.3,7.83998]
[1744778394116,0.00948016,1583.4,1583.3,12.83998]
[1744778395218,0.00948016,1583.4,1583.3,53.63998]
[1744778396419,0.00948016,1583.4,1583.3,48.63998]
[1744778399724,0.00948016,1583.4,1583.3,46.88778]
[1744778399925,0.00948016,1583.4,1583.3,43.67998]
[1744778400221,3.34768016,1583.4,1583.3,43.67998]
[1744778400825,3.34768016,1583.4,1583.3,42.06328]
[1744778401022,9.61088016,1583.4,1583.3,40.8]
[1744778402623,4.61088016,1583.4,1583.3,40.8]
[1744778403124,12.81868016,1583.4,1583.3,40.8]
[1744778403929,7.81868016,1583.4,1583.3,40.8]
[1744778404128,12.81868016,1583.4,1583.3,40.8]
[1744778405716,12.81868016,1583.4,1583.3,42.06328]
[1744778406127,12.81868016,1583.4,1583.3,40.8]
[1744778407528,1.26336,1583.2,1583.1,1.27287016]
[1744778408031,1.26336,1583.2,1583.1,42.07287016]
[1744778408228,3.02406,1583.2,1583.1,42.07287016]
[1744778408428,1.7607,1583.2,1583.1,42.07287016]
[1744778408629,1.2633,1583.3,1583.2,1.26336]
[1744778408829,2.9659,1583.3,1583.2,1.26336]
[1744778409031,2.9659,1583.3,1583.1,40.80948016]
[1744778409032,1.26336,1583.2,1583.1,42.07286016]
[1744778409226,2.96596,1583.2,1583.1,42.07286016]
[1744778409435,2.96596,1583.2,1583.1,40.80948016]
[1744778410823,1.26368,1582.9,1582.7,3.234]
[1744778411028,1.26368,1582.8,1582.7,2.8884]
[1744778411538,1.26368,1582.8,1582.7,2.88846]
[1744778411833,1.26368,1582.8,1582.7,1.6247]
[1744778412132,1.26376,1582.7,1582.6,5.73426016]
[1744778412638,2.88566,1582.7,1582.6,0.00948016]
[1744778413031,2.88566,1582.7,1582.6,1.27332016]
[1744778413433,2.88566,1582.7,1582.6,0.00948016]
[1744778414536,2.89544,1582.8,1582.6,1.27332016]
[1744778414839,2.89545,1582.8,1582.6,1.27332016]
[1744778415035,4.52135,1582.8,1582.6,1.27332016]
[1744778415238,3.2576,1582.8,1582.7,1.26376]
[1744778415438,4.52128,1582.8,1582.7,2.89236]
[1744778416042,2.91902,1583.3,1583.2,1.26336]
[1744778416234,4.59842,1583.3,1583.2,1.26336]
[1744778416534,4.59842,1583.3,1583.2,40.8]
[1744778416938,1.26368,1582.8,1582.7,1.7205]
[1744778417136,1.26376,1582.7,1582.6,1.78468016]
[1744778417335,2.94316,1582.7,1582.6,40.80948016]
[1744778418643,2.94316,1582.7,1582.6,42.07332016]
[1744778419846,2.94316,1582.7,1582.6,40.80948016]
[1744778420337,0.51667068,1583.7,1582.6,50.27148016]
[1744778420548,7.4808065,1583.4,1583.3,1.26328]
[1744778421041,9.2122065,1583.4,1583.3,1.26328]
[1744778421441,7.9490065,1583.4,1583.3,1.26328]
[1744778422347,9.2122065,1583.4,1583.3,1.26328]
[1744778423046,6.2176065,1583.4,1583.3,1.26328]
[1744778423347,0.00948016,1583.4,1583.3,1.26328]
[1744778424846,0.00948016,1583.4,1583.3,4.47108]
[1744778426251,0.00948016,1583.4,1583.3,1.26328]
[1744778426453,0.00948016,1583.4,1583.3,2.99288]
[1744778427048,0.00948016,1583.4,1583.3,6.20068]
[1744778430248,0.00948016,1583.4,1583.3,2.99288]
[1744778431050,0.00948016,1583.4,1583.3,6.20068]
[1744778432452,6.27268016,1583.4,1583.1,3.367]
[1744778432657,1.26348,1583.1,1582.9,11.62755941]
[1744778432953,1.26352,1583.0,1582.9,10.04385941]
[1744778433148,1.26352,1583.0,1582.9,8.41975941]
[1744778433354,1.26352,1583.0,1582.9,10.04385941]
[1744778433859,3.01612,1583.0,1582.9,10.04385941]
[1744778434252,3.01612,1583.0,1582.9,8.41975941]
[1744778434453,4.67642,1583.0,1582.9,8.41975941]
[1744778434758,9.67642,1583.0,1582.9,8.41975941]
[1744778434958,1.26368,1582.8,1582.7,1.6291]
[1744778435350,1.26368,1582.8,1582.7,2.89286]
[1744778435554,2.92398,1582.8,1582.7,2.89286]
[1744778436961,1.7517,1582.9,1582.8,1.26368]
[1744778437161,1.7526,1583.0,1582.9,1.2636]
[1744778437162,3.4129,1583.0,1582.9,1.2636]
[1744778437660,4.67642,1583.0,1582.9,1.2636]
[1744778438459,3.4129,1583.0,1582.9,1.2636]
[1744778438662,4.67642,1583.0,1582.9,1.2636]
[1744778439556,1.26352,1583.0,1582.9,1.2636]
[1744778439759,0.00948016,1583.4,1583.3,1.26328]
[1744778439960,0.00948016,1583.4,1583.3,8.94608]
[1744778440458,0.00948016,1583.4,1583.3,10.63648]
[1744778440660,0.00948016,1583.4,1583.3,12.35918]
[1744778445061,0.00948016,1583.4,1583.3,10.63648]
[1744778449257,1.69288016,1583.4,1583.3,10.63648]
[1744778451857,1.69288016,1583.4,1583.3,8.94608]
[1744778452762,2.95608016,1583.4,1583.3,3.2078]
[1744778452965,1.69288016,1583.4,1583.2,1.6789]
[1744778453263,1.6113,1583.3,1583.2,2.94219]
[1744778460372,3.3788,1583.3,1583.2,2.94219]
[1744778460771,4.64208,1583.3,1583.2,2.94219]
[1744778461075,3.3788,1583.3,1583.2,2.94219]
[1744778461374,0.00948016,1583.4,1583.3,1.26328]
[1744778461573,0.00948016,1583.4,1583.3,4.47108]
[1744778463277,1.27268016,1583.4,1583.3,4.47108]
[1744778463473,1.26328,1583.3,1583.2,2.9422]
[1744778463672,2.97308,1583.3,1583.2,2.9422]
[1744778464074,1.7098,1583.3,1583.2,2.9422]
[1744778464776,2.97308,1583.3,1583.2,2.9422]
[1744778465074,4.61688,1583.3,1583.2,2.9422]
[1744778465667,4.61688,1583.3,1583.2,1.2633]
[1744778465868,1.26344,1583.1,1583.0,1.26346]
[1744778466466,2.92694,1583.1,1583.0,1.26346]
[1744778467378,1.26352,1583.0,1582.9,7.42243]
[1744778467676,1.26352,1583.0,1582.8,3.3518]
[1744778467677,1.6438,1583.0,1582.7,8.41975941]
[1744778467868,1.6635,1583.1,1582.8,3.15921]
[1744778468074,1.6635,1583.1,1583.0,1.26352]
[1744778468274,2.92694,1583.1,1583.0,1.26352]
[1744778468475,3.3829,1583.1,1583.0,2.97622]
[1744778468674,1.6966,1583.2,1583.1,1.26344]
[1744778468874,1.6966,1583.2,1583.1,2.97614]
[1744778470082,2.95996,1583.2,1583.1,1.7127]
[1744778470281,4.67936,1583.2,1583.1,1.7127]
[1744778470580,3.416,1583.2,1583.1,2.97614]
[1744778471078,4.67936,1583.2,1583.1,2.97614]
[1744778471680,3.416,1583.2,1583.1,2.97614]
[1744778471976,2.88108,1583.3,1583.2,1.26336]
[1744778472171,4.60518,1583.3,1583.2,2.98596]
[1744778473277,3.3419,1583.3,1583.2,2.98596]
[1744778473979,4.60518,1583.3,1583.2,2.98596]
[1744778474280,3.3419,1583.3,1583.2,2.98596]
[1744778474480,4.60518,1583.3,1583.2,2.98596]
[1744778481983,1.6178,1583.3,1583.2,2.98596]
[1744778482187,1.75278016,1583.4,1583.3,1.26328]
[1744778482383,1.75278016,1583.4,1583.3,2.90908]
[1744778482685,4.79918016,1583.4,1583.3,2.90908]
[1744778484289,4.79918016,1583.4,1583.3,1.6458]
[1744778484881,4.79918016,1583.4,1583.3,2.90908]
[1744778489595,1.26352,1583.1,1583.0,1.26347]
[1744778490592,4.76932,1583.1,1583.0,1.26347]
[1744778491096,1.26352,1583.0,1582.9,13.05940941]
[1744778491295,2.93432,1583.0,1582.9,13.05940941]
[1744778491992,2.93432,1583.0,1582.9,11.34430941]
[1744778492396,4.7693,1583.1,1583.0,1.26352]
[1744778492592,5.2497,1583.1,1583.0,1.26352]
[1744778492786,6.51314,1583.1,1583.0,2.93402]
[1744778493993,6.51314,1583.1,1583.0,1.6705]
[1744778494501,1.2636,1582.9,1582.8,4.7229]
[1744778494799,3.00748,1583.0,1582.9,1.2636]
[1744778495499,1.2636,1582.9,1582.8,4.72292]
[1744778496397,1.2636,1582.9,1582.8,3.4593]
[1744778496988,1.2636,1582.9,1582.8,1.6705]
[1744778497902,1.2636,1582.9,1582.8,2.93413]
[1744778498797,1.2636,1582.9,1582.8,1.6705]
[1744778499300,1.26368,1582.8,1582.7,1.7324]
[1744778499500,1.26376,1582.7,1582.6,40.80948016]
[1744778499698,4.73556,1582.7,1582.6,42.53648016]
[1744778500102,4.73556,1582.7,1582.6,43.80032016]
[1744778501401,1.6368,1582.8,1582.7,1.26376]
[1744778501602,2.90048,1582.8,1582.7,1.6745]
[1744778501906,1.26376,1582.7,1582.6,42.07328016]
[1744778502108,4.76646,1582.7,1582.6,42.07328016]
[1744778502307,4.76646,1582.7,1582.6,43.74778016]
[1744778504315,4.76646,1582.7,1582.6,0.00948016]
[1744778504614,4.76646,1582.7,1582.6,1.67888016]
[1744778504802,4.76646,1582.7,1582.6,42.47888016]
[1744778505007,4.76646,1582.7,1582.6,43.74272016]
[1744778505207,3.5027,1582.7,1582.6,43.74272016]
[1744778505407,4.76646,1582.7,1582.6,43.74272016]
[1744778505913,1.6368,1582.8,1582.7,1.26376]
[1744778506116,2.90048,1582.8,1582.7,2.93316]
[1744778506313,2.90048,1582.8,1582.7,4.71856]
[1744778507917,2.90048,1582.8,1582.7,3.4548]
[1744778508116,4.56688,1582.8,1582.7,3.4548]
[1744778508317,4.56688,1582.8,1582.7,4.71856]
[1744778509417,4.56688,1582.8,1582.7,3.4548]
[1744778510019,4.56688,1582.8,1582.7,4.71856]
[1744778512521,1.26376,1582.7,1582.6,0.00948016]
[1744778512816,3.15975,1582.6,1582.2,8.41975941]
[1744778513011,1.26408,1582.3,1582.2,49.21975941]
[1744778513210,1.26408,1582.3,1582.2,8.41975941]
[1744778513616,9.63198,1582.3,1582.2,0.05872973]
[1744778513919,9.63198,1582.3,1582.1,11.21056954]
[1744778513920,1.26416,1582.2,1582.1,11.21056954]
[1744778514108,12.08866,1582.2,1582.1,9.89692954]
[1744778514313,17.08866,1582.2,1582.1,8.62652954]
[1744778514513,1.26432,1582.0,1581.9,8.61704938]
[1744778514713,1.2644,1581.9,1581.8,15.10496065]
[1744778515217,1.26448,1581.8,1581.7,19.16964982]
[1744778515411,10.40828,1581.8,1581.7,19.16964982]
[1744778515613,15.40828,1581.8,1581.7,17.16300982]
[1744778515931,15.40828,1581.8,1581.5,24.67055127]
[1744778515932,1.26464,1581.6,1581.5,24.67055127]
[1744778516117,4.47244,1581.6,1581.5,24.67055127]
[1744778516315,9.47244,1581.6,1581.5,24.67055127]
[1744778516720,10.40833,1581.8,1581.5,30.99215127]
[1744778517013,7.20053,1581.8,1581.6,9.22851]
[1744778517219,7.20053,1581.8,1581.7,7.9639]
[1744778517922,1.26464,1581.6,1581.5,26.37045127]
[1744778518122,1.26464,1581.6,1581.5,34.33435127]
[1744778518321,1.26461,1581.7,1581.5,35.59906127]
[1744778518513,1.26461,1581.7,1581.6,7.9639]
[1744778521122,1.26464,1581.6,1581.5,1.6999]
[1744778521317,2.89474,1581.6,1581.5,1.6999]
[1744778522122,2.89474,1581.6,1581.5,8.0215]
[1744778522322,1.26464,1581.6,1581.5,8.0215]
[1744778522725,1.26464,1581.6,1581.5,9.7333]
[1744778527630,1.2648,1581.4,1581.3,1.7784]
[1744778527931,1.2648,1581.4,1581.3,8.1]
[1744778528329,5.7268,1581.4,1581.3,7.955]
[1744778528627,8.9346,1581.4,1581.3,7.955]
[1744778529226,1.2648,1581.4,1581.3,7.955]
[1744778529732,1.2648,1581.4,1581.3,9.21988]
[1744778529934,1.2648,1581.4,1581.3,7.955]
[1744778530534,1.2648,1581.4,1581.3,9.21988]
[1744778531033,1.2648,1581.4,1581.3,7.955]
[1744778532036,1.2648,1581.4,1581.3,9.21988]
[1744778532535,0.00948016,1581.5,1581.4,1.2648]
[1744778532738,0.00948016,1581.5,1581.4,11.0216]
[1744778533134,1.27420016,1581.5,1581.4,9.7568]
[1744778534640,4.48200016,1581.5,1581.4,7.9968]
[1744778535030,1.27420016,1581.5,1581.4,7.9968]
[1744778535234,1.27420016,1581.5,1581.2,1.7379]
[1744778535235,1.26488,1581.3,1581.2,1.7379]
[1744778535439,1.26526,1580.9,1580.7,3.2078]
[1744778535639,5.72718,1581.0,1580.8,11.09788]
[1744778535832,5.72718,1581.0,1580.9,42.5562]
[1744778536139,1.26518,1581.0,1580.9,48.8778]
[1744778536740,1.26518,1581.0,1580.9,50.143]
[1744778537041,1.26518,1581.0,1580.9,48.8778]
[1744778538437,3.1632,1580.8,1580.0,3.2078]
[1744778538739,1.26552,1580.5,1580.4,1.6908]
[1744778540632,1.26552,1580.5,1580.4,8.0124]
[1744778540833,1.26552,1580.5,1580.4,1.6908]
[1744778541641,1.26552,1580.5,1580.4,8.0124]
[1744778543841,1.27499016,1580.6,1580.5,1.26552]
[1744778544031,1.27499016,1580.6,1580.5,9.6774]
[1744778545338,1.27499016,1580.6,1580.5,10.94292]
[1744778545532,1.27499016,1580.6,1580.5,9.6774]
[1744778547339,1.27499016,1580.6,1580.5,10.94292]
[1744778549229,1.27499016,1580.6,1580.5,9.6774]
[1744778551946,1.26589,1580.1,1580.0,1.2659]
[1744778552239,1.26592,1580.0,1579.9,4.8413]
[1744778552443,3.16501,1579.9,1579.5,42.06631]
[1744778552641,1.26615,1579.8,1579.6,10.79557]
[1744778552845,1.26616,1579.7,1579.6,6.3216]
[1744778553040,1.26616,1579.7,1579.5,40.8]
[1744778553345,1.27562016,1579.8,1579.6,9.24871]
[1744778553538,1.27562016,1579.8,1579.7,3.4422]
[1744778553738,0.00948016,1579.8,1579.7,11.02996]
[1744778554441,5.72995,1580.0,1579.8,1.26602]
[1744778554638,1.26595,1580.0,1579.9,1.6609]
[1744778554840,1.26595,1580.0,1579.9,7.9825]
[1744778555040,3.2078,1580.1,1579.9,7.9825]
[1744778555247,11.66682,1580.2,1580.0,6.3216]
[1744778555544,11.66676,1580.2,1580.1,1.6609]
[1744778555742,13.45506,1580.2,1580.1,6.3216]
[1744778555943,11.66676,1580.2,1580.1,6.3216]
[1744778556447,1.26592,1580.0,1579.9,0.00948016]
[1744778556748,1.26592,1580.0,1579.9,1.71938016]
[1744778556949,1.26592,1580.0,1579.9,8.04098016]
[1744778557749,1.26592,1580.0,1579.9,1.71938016]
[1744778558447,2.91742,1580.0,1579.9,1.71938016]
[1744778559850,2.91742,1580.0,1579.9,0.00948016]
[1744778562952,1.26592,1580.0,1579.9,0.00948016]
[1744778563352,2.89562,1580.0,1579.9,0.00948016]
[1744778564659,2.89562,1580.0,1579.9,6.33108016]
[1744778565157,13.83162,1580.0,1579.9,0.00948016]
[1744778565359,13.88582,1580.0,1579.9,0.00948016]
[1744778566653,8.83162,1580.0,1579.9,0.00948016]
[1744778570451,8.86932,1580.0,1579.9,0.00948016]
[1744778577476,8.83162,1580.0,1579.9,0.00948016]
[1744778577670,7.20192,1580.0,1579.9,0.00948016]
[1744778580072,8.93122,1580.0,1579.9,0.00948016]
[1744778580267,1.26662,1579.2,1579.1,1.26662]
[1744778580472,1.26664,1579.1,1579.0,1.26665]
[1744778580668,1.26664,1579.1,1578.9,9.5294]
[1744778580870,1.26664,1579.1,1579.0,6.3216]
[1744778581068,1.25737972,1579.1,1579.0,6.3216]
[1744778582176,1.25737972,1579.1,1579.0,8.0651]
[1744778582780,0.00948016,1579.2,1579.1,1.26664]
[1744778583072,1.26656,1579.2,1579.1,9.7465]
[1744778585875,0.00948016,1579.3,1579.2,1.26656]
[1744778586076,1.26619,1579.7,1579.6,1.26621]
[1744778586271,5.38242581,1579.7,1579.6,1.26624]
[1744778586575,5.38242581,1579.7,1579.6,6.3216]
[1744778586874,5.38242581,1579.7,1579.6,7.58784]
[1744778587378,0.73552638,1579.8,1579.7,7.58776]
[1744778587574,8.23241162,1580.0,1579.9,1.266]
[1744778587778,8.23241162,1580.0,1579.9,4.4738]
[1744778587976,8.23241162,1580.0,1579.9,56.5954]
[1744778588573,8.23241162,1580.0,1579.9,50.2738]
[1744778588773,8.23241162,1580.0,1579.9,56.5954]
[1744778588969,1.14589178,1580.0,1579.9,56.5954]
[1744778589272,10.29589053,1580.1,1580.0,1.26592]
[1744778589467,0.00948016,1580.1,1580.0,12.58752]
[1744778589675,1.26546,1580.6,1580.5,1.26551]
[1744778589877,1.26546,1580.6,1580.5,40.8]
[1744778590071,1.26546,1580.6,1580.5,47.1216]
[1744778591176,1.26546,1580.6,1580.5,40.8]
[1744778591377,1.26568,1580.3,1580.2,4.478]
[1744778591572,1.26576,1580.2,1580.1,1.26582]
[1744778591880,1.26576,1580.2,1580.1,40.8]
[1744778592082,1.26576,1580.2,1580.1,47.1216]
[1744778593272,1.26576,1580.2,1580.1,6.3216]
[1744778593873,2.94336,1580.2,1580.1,6.3216]
[1744778594282,2.94336,1580.2,1579.8,0.00948016]
[1744778594283,1.266,1579.9,1579.8,0.00948016]
[1744778594782,1.266,1579.9,1579.8,6.33108016]
[1744778595386,1.266,1579.9,1579.8,7.59716016]
[1744778596072,1.266,1579.9,1579.8,47.13108016]
[1744778597280,4.4738,1579.9,1579.8,6.33108016]
[1744778597782,3.057,1579.9,1579.8,6.33108016]
[1744778597986,6.2648,1579.9,1579.8,0.00948016]
[1744778598183,1.266,1579.9,1579.8,6.33108016]
[1744778599782,2.9023,1579.9,1579.8,6.33108016]
[1744778601381,2.9023,1579.9,1579.8,0.00948016]
[1744778601578,6.1101,1579.9,1579.8,0.00948016]
[1744778603890,2.9023,1579.9,1579.8,0.00948016]
[1744778604086,2.9023,1579.9,1579.8,1.78868016]
[1744778604584,6.1101,1579.9,1579.8,1.78868016]
[1744778605185,2.9023,1579.9,1579.8,1.78868016]
[1744778606786,1.266,1579.9,1579.8,8.11028016]
[1744778606987,1.266,1579.9,1579.8,9.37636016]
[1744778607182,1.266,1579.9,1579.8,8.11028016]
[1744778610593,2.9633,1579.9,1579.8,8.11028016]
[1744778610986,2.9633,1579.9,1579.8,0.00948016]
[1744778611384,4.6398,1579.9,1579.8,0.00948016]
[1744778612190,7.8476,1579.9,1579.8,0.00948016]
[1744778612487,12.8476,1579.9,1579.8,0.00948016]
[1744778612688,1.26624,1579.6,1579.5,42.4841]
[1744778612888,1.26624,1579.6,1579.5,3.4722]
[1744778613085,1.26624,1579.6,1579.5,9.7938]
[1744778613290,2.96354,1579.6,1579.5,9.7938]
[1744778615192,1.26624,1579.6,1579.5,11.06012]
[1744778615394,1.26624,1579.6,1579.5,9.7938]
[1744778615998,1.26624,1579.6,1579.5,11.06012]
[1744778616400,3.21728016,1579.7,1579.6,1.26624]
[1744778616587,4.48344016,1579.7,1579.6,9.36014]
[1744778618001,0.00948016,1579.7,1579.6,14.36014]
[1744778618591,0.00948016,1579.7,1579.6,3.03854]
[1744778618789,0.00948016,1579.7,1579.6,14.36014]
[1744778619191,4.47366,1580.1,1580.0,1.26592]
[1744778619594,4.466,1580.2,1580.1,1.2658]
[1744778619595,1.26581,1580.2,1580.1,1.2658]
[1744778619790,13.49421037,1580.5,1580.1,8.0279]
[1744778619999,1.2657,1580.3,1580.2,6.3216]
[1744778620700,1.2657,1580.3,1580.2,7.58736]
[1744778621398,1.2657,1580.3,1580.2,6.3216]
[1744778621895,1.27513016,1580.4,1580.2,6.3216]
[1744778622102,1.27513016,1580.4,1580.3,11.14208]
[1744778622296,1.27513016,1580.4,1580.3,3.5548]
[1744778622602,1.27513016,1580.4,1580.3,9.8764]
[1744778623098,1.27513016,1580.4,1580.1,0.00948016]
[1744778623099,1.26576,1580.2,1580.1,0.00948016]
[1744778623298,4.47356,1580.2,1580.1,0.00948016]
[1744778623505,1.26632,1579.5,1579.4,1.26636]
[1744778623699,1.26632,1579.5,1579.4,9.34136]
[1744778623899,1.2663,1579.6,1579.4,14.34136]
[1744778624100,1.2663,1579.6,1579.5,6.3216]
[1744778626105,1.27570016,1579.7,1579.5,7.58792]
[1744778626406,1.27570016,1579.7,1579.6,7.58784]
[1744778626407,0.00948016,1579.7,1579.6,7.58784]
[1744778626805,0.00948016,1579.7,1579.6,12.58784]
[1744778627107,1.27564016,1579.7,1579.6,12.58784]
[1744778627302,1.27564016,1579.7,1579.6,6.3216]
[1744778629311,0.00948016,1579.7,1579.6,7.58784]
[1744778629605,0.00948016,1579.7,1579.6,10.79564]
[1744778630803,0.00948016,1579.7,1579.6,15.79564]
[1744778632506,6.58687,1580.2,1580.1,1.26579]
[1744778632507,1.26579,1580.2,1580.1,1.26579]
[1744778632708,8.29027776,1580.3,1579.9,6.37278]
[1744778633008,11.25551776,1580.3,1580.2,1.26576]
[1744778633207,9.55601776,1580.3,1580.2,1.26576]
[1744778633508,9.55601776,1580.3,1580.2,6.3216]
[1744778634005,14.46331776,1580.3,1580.2,6.3216]
[1744778635804,6.17304,1580.3,1580.2,6.3216]
[1744778636406,6.17304,1580.3,1580.2,8.0736]
[1744778637005,2.96524,1580.3,1580.2,8.0736]
[1744778640115,6.17304,1580.3,1580.2,8.0736]
[1744778640608,6.17304,1580.3,1580.2,6.3216]
[1744778640805,6.17304,1580.3,1580.0,1.719]
[1744778640806,1.26584,1580.1,1580.0,1.6533]
[1744778641212,1.26584,1580.1,1580.0,9.24082]
[1744778641909,2.99644,1580.2,1580.1,1.26584]
[1744778642116,1.26584,1580.2,1580.1,9.33254]
[1744778642410,1.26584,1580.2,1580.1,8.0667]
[1744778643313,1.26584,1580.2,1580.1,9.33254]
[1744778643916,1.26584,1580.2,1580.1,8.0667]
[1744778644215,1.26584,1580.2,1580.1,6.3216]
[1744778644514,3.01314,1580.2,1580.1,6.3216]
[1744778645212,3.01314,1580.2,1580.1,8.051]
[1744778647419,3.01314,1580.2,1580.1,6.3216]
[1744778648608,1.26584,1580.1,1580.0,1.7022]
[1744778649511,1.26584,1580.1,1580.0,8.0238]
[1744778649711,1.26584,1580.1,1580.0,6.3216]
[1744778649913,4.73974,1580.1,1580.0,6.3216]